[Event "Szansa Chess Open 2022"]
[Site "Warsaw"]
[Date "2022.09.18"]
[Round "6.8"]
[White "Kowalski, Igor"]
[Black "Podgorski, Maciej"]
[Result "1/2-1/2"]
[ECO "D37"]
[WhiteElo "2344"]
[BlackElo "2059"]
[Annotator "ChessBase"]
[PlyCount "116"]
[EventDate "2022.09.17"]
[EventCountry "POL"]
[SourceTitle "playchess.com"]
[Source "ChessBase"]
[SourceQuality "1"]
[TimeControl "900+10"]

1. d4 {[%emt 0:00:01]} d5 {[%emt 0:00:46]} 2. c4 {[%emt 0:00:01]} e6 {[%emt 0:00:02]} 3. Nc3 {[%emt 0:00:02]} Nf6 {[%emt 0:00:01]} 4. Nf3 {[%emt 0:00:01]} Be7 {[%emt 0:00:02]} 5. Bf4 {[%emt 0:00:03]} dxc4 {[%emt 0:00:10]} 6. e3 {[%emt 0:00:07]} a6 {[%emt 0:00:30]} 7. a4 {[%emt 0:00:03]} O-O {[%emt 0:00:31]} 8. Bxc4 {[%emt 0:00:02]} c5 {[%emt 0:00:55]} 9. O-O {[%emt 0:00:06]} Nc6 {[%emt 0:00:17]} 10. Re1 {[%emt 0:00:24]} Qb6 {[%emt 0:01:33]} 11. dxc5 {[%emt 0:01:32]} Bxc5 {[%emt 0:00:24]} 12. Qe2 {[%emt 0:00:05]} h6 {[%emt 0:03:45]} 13. Red1 {[%emt 0:01:42]} Re8 {[%emt 0:01:15]} 14. Ne5 {[%emt 0:00:36]} Nxe5 {[%emt 0:00:38]} 15. Bxe5 {[%emt 0:00:01]} Nd7 {[%emt 0:00:43]} 16. Bg3 {[%emt 0:00:12]} Nf8 {[%emt 0:01:38]} 17. Ne4 {[%emt 0:00:20]} Be7 {[%emt 0:00:35]} 18. Be5 {[%emt 0:03:40]} Ng6 {[%emt 0:01:37]} 19. Bc3 {[%emt 0:01:55]} e5 {[%emt 0:00:17]} 20. a5 {[%emt 0:00:06]} Qc7 {[%emt 0:00:44]} 21. Rac1 {[%emt 0:00:09]} b5 22. Bd5 {[%emt 0:01:25]} Bb7 {[%emt 0:00:50]} 23. Bxe5 {[%emt 0:01:40]} Qxe5 {[%emt 0:00:01]} 24. Bxb7 {[%emt 0:00:01]} Ra7 {[%emt 0:00:11]} 25. f4 {[%emt 0:00:53]} Qb8 {[%emt 0:00:38]} 26. Bd5 {[%emt 0:00:03]} Rc7 {[%emt 0:00:32]} 27. Qh5 {[%emt 0:01:32]} Rxc1 {[%emt 0:00:11]} 28. Rxc1 {[%emt 0:00:01]} Qa7 {[%emt 0:00:10]} 29. Kf2 {[%emt 0:00:43]} Rd8 {[%emt 0:00:41]} 30. Qxg6 {[%emt 0:01:36]} Rxd5 {[%emt 0:00:01]} 31. Rc8+ {[%emt 0:00:02]} Rd8 {[%emt 0:00:08]} 32. Qc6 {[%emt 0:00:02]} Rxc8 {[%emt 0:00:21]} 33. Qxc8+ {[%emt 0:00:01]} Kh7 {[%emt 0:00:07]} 34. g4 {[%emt 0:00:24]} Bb4 {[%emt 0:00:16]} 35. g5 {[%emt 0:00:33]} Qe7 {[%emt 0:00:02]} 36. Kf3 {[%emt 0:00:19]} Qe6 {[%emt 0:00:17]} 37. Qc2 {[%emt 0:00:33]} Kg8 {[%emt 0:00:16]} 38. gxh6 {[%emt 0:00:02]} gxh6 {[%emt 0:00:10]} 39. Qc7 {[%emt 0:00:15]} Bf8 40. Ng3 {[%emt 0:00:11]} Qd5+ {[%emt 0:00:15]} 41. Kg4 {[%emt 0:00:02]} Qd1+ {[%emt 0:00:04]} 42. Kh3 {[%emt 0:00:06]} Qd6 {[%emt 0:00:05]} 43. Qxd6 {[%emt 0:00:08]} Bxd6 {[%emt 0:00:01]} 44. Nf5 {[%emt 0:00:01]} Bb4 {[%emt 0:00:09]} 45. Nxh6+ {[%emt 0:00:04]} Kf8 {[%emt 0:00:12]} 46. Kg4 {[%emt 0:00:21]} Bxa5 {[%emt 0:00:02]} 47. Nf5 {[%emt 0:00:01]} Bd2 {[%emt 0:00:15]} 48. Kf3 {[%emt 0:00:07]} Bc1 {[%emt 0:00:18]} 49. b3 {[%emt 0:00:03]} a5 {[%emt 0:00:02]} 50. Ke2 {[%emt 0:00:37]} a4 {[%emt 0:00:32]} 51. Kd1 {[%emt 0:00:04]} Bb2 {[%emt 0:00:15]} 52. Kc2 {[%emt 0:00:11]} Ba3 {[%emt 0:00:14]} 53. Nd4 {[%emt 0:00:05]} Bc5 {[%emt 0:00:07]} 54. Nxb5 {[%emt 0:00:44]} axb3+ {[%emt 0:00:06]} 55. Kxb3 {[%emt 0:00:00]} Bxe3 {[%emt 0:00:01]} 56. f5 Bf4 {[%emt 0:00:05]} 57. h3 {[%emt 0:00:03]} Kg7 {[%emt 0:00:04]} 58. Kc4 {[%emt 0:00:06]} Kf6 {[%emt 0:00:04]} 1/2-1/2

[Event "Szansa Chess Open 2022"]
[Site "Warsaw"]
[Date "2022.09.18"]
[Round "6.9"]
[White "Stepinski, Piotr"]
[Black "Lewtak, Damian"]
[Result "1-0"]
[ECO "B29"]
[WhiteElo "1663"]
[BlackElo "2386"]
[Annotator "ChessBase"]
[PlyCount "48"]
[EventDate "2022.09.17"]
[EventCountry "POL"]
[SourceTitle "playchess.com"]
[Source "ChessBase"]
[SourceQuality "1"]
[TimeControl "900+10"]

1. e4 {[%emt 0:00:02]} c5 {[%emt 0:00:09]} 2. Nf3 {[%emt 0:00:07]} Nf6 {[%emt 0:00:03]} 3. e5 {[%emt 0:00:17]} Nd5 {[%emt 0:00:02]} 4. c3 {[%emt 0:00:11]} e6 {[%emt 0:00:14]} 5. d4 {[%emt 0:00:26]} cxd4 {[%emt 0:00:11]} 6. cxd4 {[%emt 0:00:02]} d6 {[%emt 0:00:30]} 7. Nc3 {[%emt 0:00:34]} Nxc3 {[%emt 0:00:10]} 8. bxc3 {[%emt 0:00:01]} Qc7 {[%emt 0:00:37]} 9. Bd2 {[%emt 0:00:44]} dxe5 {[%emt 0:00:28]} 10. Nxe5 {[%emt 0:00:07]} Nd7 {[%emt 0:00:06]} 11. Nf3 {[%emt 0:03:59]} Be7 {[%emt 0:00:44]} 12. Bd3 {[%emt 0:00:06]} b6 {[%emt 0:00:04]} 13. O-O {[%emt 0:01:22]} Bb7 {[%emt 0:00:05]} 14. Re1 {[%emt 0:00:35]} O-O {[%emt 0:00:28]} 15. h3 {[%emt 0:00:55]} Rac8 {[%emt 0:00:29]} 16. Ne5 {[%emt 0:03:55]} Nxe5 {[%emt 0:00:58]} 17. Rxe5 {[%emt 0:00:04]} Bf6 {[%emt 0:00:24]} 18. Re3 {[%emt 0:01:13]} g6 {[%emt 0:00:41]} 19. Rc1 {[%emt 0:01:28]} Rfe8 {[%emt 0:00:28]} 20. f4 {[%emt 0:01:09]} Qxf4 {[%emt 0:01:37]} 21. Rxe6 {[%emt 0:01:02]} Qg3 {[%emt 0:00:04]} 22. Rxe8+ {[%emt 0:00:01]} Rxe8 {[%emt 0:00:01]} 23. Bf1 {[%emt 0:00:01]} Bh4 {[%emt 0:00:49]} 24. Qc2 {[%emt 0:00:36]} Re2 {[%emt 0:00:21]} 1-0

[Event "Szansa Chess Open 2022"]
[Site "Warsaw"]
[Date "2022.09.18"]
[Round "6.10"]
[White "Lewicki, Miroslaw"]
[Black "Mulawa, Cyprian"]
[Result "1-0"]
[ECO "A01"]
[WhiteElo "2336"]
[BlackElo "2149"]
[Annotator "ChessBase"]
[PlyCount "71"]
[EventDate "2022.09.17"]
[EventCountry "POL"]
[SourceTitle "playchess.com"]
[Source "ChessBase"]
[SourceQuality "1"]
[TimeControl "900+10"]

1. b3 {[%emt 0:00:03]} e5 {[%emt 0:00:28]} 2. Bb2 {[%emt 0:00:02]} Nc6 {[%emt 0:00:02]} 3. g3 {[%emt 0:00:02]} d5 {[%emt 0:00:07]} 4. Bg2 {[%emt 0:00:02]} f5 {[%emt 0:00:07]} 5. e3 {[%emt 0:00:16]} Nf6 {[%emt 0:00:02]} 6. Ne2 {[%emt 0:00:03]} Bd6 {[%emt 0:00:36]} 7. O-O {[%emt 0:00:08]} O-O {[%emt 0:00:04]} 8. d4 {[%emt 0:00:04]} e4 {[%emt 0:00:25]} 9. c4 {[%emt 0:00:02]} Nb4 {[%emt 0:00:17]} 10. cxd5 {[%emt 0:01:18]} Nd3 {[%emt 0:00:34]} 11. Ba3 {[%emt 0:00:05]} Nxd5 {[%emt 0:00:03]} 12. Bxd6 {[%emt 0:00:11]} Qxd6 {[%emt 0:00:04]} 13. Nd2 {[%emt 0:00:06]} b5 {[%emt 0:02:50]} 14. g4 {[%emt 0:04:17]} Nxf2 {[%emt 0:03:07]} 15. Rxf2 {[%emt 0:00:58]} Nxe3 {[%emt 0:00:02]} 16. Qc1 {[%emt 0:00:46]} Bb7 {[%emt 0:00:56]} 17. Nxe4 {[%emt 0:00:31]} Bxe4 {[%emt 0:00:39]} 18. Qxe3 {[%emt 0:00:05]} Rae8 {[%emt 0:00:09]} 19. Qg3 {[%emt 0:01:22]} f4 {[%emt 0:00:47]} 20. Nxf4 {[%emt 0:01:27]} Bxg2 {[%emt 0:00:56]} 21. Kxg2 {[%emt 0:00:55]} g5 {[%emt 0:00:21]} 22. Ne2 {[%emt 0:00:52]} Qd5+ {[%emt 0:00:47]} 23. Kf1 {[%emt 0:00:52]} Qh1+ {[%emt 0:01:47]} 24. Ng1 {[%emt 0:00:16]} Rxf2+ {[%emt 0:00:08]} 25. Kxf2 {[%emt 0:00:05]} Rf8+ {[%emt 0:00:49]} 26. Ke3 {[%emt 0:00:05]} Rf4 {[%emt 0:00:17]} 27. Re1 {[%emt 0:01:21]} Qe4+ {[%emt 0:01:02]} 28. Kd2 {[%emt 0:00:01]} Qxd4+ {[%emt 0:00:02]} 29. Kc2 {[%emt 0:00:20]} Qc5+ {[%emt 0:00:37]} 30. Kb1 {[%emt 0:00:12]} Rf2 {[%emt 0:00:14]} 31. Qd3 {[%emt 0:00:04]} Qf8 {[%emt 0:00:24]} 32. Qxb5 {[%emt 0:00:33]} Qf6 {[%emt 0:00:13]} 33. Re8+ {[%emt 0:00:21]} Kf7 {[%emt 0:00:15]} 34. Qd7+ {[%emt 0:00:03]} Kg6 {[%emt 0:00:02]} 35. Re6 {[%emt 0:00:10]} Rf1+ {[%emt 0:00:03]} 36. Kc2 {[%emt 0:00:01]} 1-0

[Event "Szansa Chess Open 2022"]
[Site "Warsaw"]
[Date "2022.09.18"]
[Round "6.11"]
[White "Siekanska, Maria"]
[Black "Zablocki, Michal"]
[Result "1-0"]
[ECO "A41"]
[WhiteElo "2029"]
[BlackElo "1136"]
[Annotator "TA"]
[PlyCount "83"]
[EventDate "2022.09.17"]
[EventCountry "POL"]
[SourceTitle "playchess.com"]
[Source "ChessBase"]
[SourceQuality "1"]
[TimeControl "900+10"]

{[%evp 14,83,38,24,46,36,35,33,38,40,66,77,67,60,80,62,137,127,131,128,132,122,179,178,216,205,248,97,108,121,107,116,324,356,371,379,413,403,375,375,802,802,741,750,730,693,698,666,711,708,703,695,633,595,875,870,1349,1210,1441,1238,1381,1354,1280,1131,1343,1287,1629,1601,1420,950,29987,29988]} 1. d4 {[%emt 0:00:01]} d6 {[%emt 0:05:25]} 2. c4 {[%emt 0:00:13]} Nd7 {[%emt 0:00:03]} 3. e4 {[%emt 0:00:32]} e5 {[%emt 0:00:01]} 4. Nf3 {[%emt 0:00:25]} Ngf6 {[%emt 0:00:02]} 5. Nc3 {[%emt 0:00:17]} Be7 {[%emt 0:00:01]} 6. Be2 {[%emt 0:00:42]} O-O {[%emt 0:00:02]} 7. d5 {[%emt 0:01:04]} c6 {[%emt 0:00:06]} 8. O-O {[%emt 0:00:26]} a6 {[%emt 0:00:01] A55: Old Indian Defence with Nf3 and e4.} 9. Bd2 {[%emt 0:01:19] [#]} Nc5 $146 {[%emt 0:00:19]} ({Predecessor:} 9... cxd5 10. cxd5 b5 11. b4 Nb6 12. Qb3 Bd7 13. Rfc1 Qb8 14. h3 Rc8 15. Be3 Qb7 16. Nd2 {½-½ (62) Richter,M (2370)-Mirschinka,D (2260) Germany 1998}) 10. Qc2 {[%emt 0:00:24]} Bg4 {[%emt 0:00:03] White is slightly better.} 11. b4 {[%emt 0:00:43]} Bxf3 {[%emt 0:00:16]} 12. Bxf3 {[%emt 0:00:06]} Ncd7 {[%emt 0:00:01]} 13. Rac1 {[%emt 0:00:35]} cxd5 {[%emt 0:00:05]} 14. cxd5 {[%emt 0:00:17]} b5 {[%emt 0:00:06]} (14... Rc8 $14) 15. a4 $16 bxa4 {[%emt 0:01:53]} 16. Nxa4 {[%emt 0:00:48]} ({Much less strong is} 16. Qxa4 a5 $14) 16... Qb8 {[%emt 0:00:27]} 17. Qa2 {[%emt 0:00:51]} Bd8 {[%emt 0:01:40]} (17... Rc8 $16) 18. Rc6 $18 {[%emt 0:01:41]} a5 {[%emt 0:00:32] [#]} 19. b5 {[%emt 0:00:05][%cal Ob5b6]} Nb6 {[%emt 0:04:04]} 20. Rfc1 $2 {[%emt 0:00:14]} (20. Be3 $18 {is more deadly.} Nxa4 21. Qxa4) 20... Nxa4 $16 {[%emt 0:00:08]} 21. Qxa4 {[%emt 0:00:03]} Bb6 {[%emt 0:00:06]} 22. Bg5 {[%emt 0:00:27] White is much more active. The black rooks are badly placed.} Bc5 $2 {[%emt 0:01:33] This move loses the game for Black.} (22... Qa7 $16) 23. Bxf6 $18 {[%emt 0:00:20]} gxf6 {[%emt 0:00:01]} 24. Bg4 {[%emt 0:00:38][%cal Bf3g4,Bg4f5,Bf5c8,Bc8b7,Bb7c6][%mdl 32]} Kh8 {[%emt 0:00:01]} 25. Bf5 {[%emt 0:00:47]} Rg8 {[%emt 0:00:01]} 26. Qb3 {[%emt 0:00:09]} a4 $2 {[%emt 0:00:19]} (26... Qf8 27. Qh3 Qg7) 27. Qh3 {[%emt 0:00:04][%csl Gf5][%cal Rh3h7] [#]} Rg7 {[%emt 0:00:01]} 28. Rc8+ {[%emt 0:00:03]} Qxc8 {[%emt 0:00:04]} 29. Bxc8 {[%emt 0:00:02][%cal Oc1c5] Threatens to win with Rxc5!} a3 {[%emt 0:00:00]} 30. Bb7 {[%emt 0:00:36]} Ra4 {[%emt 0:00:05]} 31. Qb3 {[%emt 0:02:04]} Ra5 {[%emt 0:02:14]} 32. Bc6 {[%emt 0:00:39] aiming for b6.} Rg8 {[%emt 0:00:36]} 33. b6 {[%emt 0:00:19][%cal Bb5b6,Bb6b7][%mdl 32] Strongly threatening b7.} Rb8 {[%emt 0:00:10]} 34. b7 {[%emt 0:00:03]} Ra7 {[%emt 0:00:10]} 35. h3 {[%emt 0:00:04]} Bd4 {[%emt 0:00:02]} 36. Rc2 {[%emt 0:00:31]} Kg7 {[%emt 0:00:02]} 37. Ra2 {[%emt 0:00:22]} Bc5 {[%emt 0:00:03]} 38. h4 {[%emt 0:00:09][%cal Bh3h4,Bh4h5][%mdl 32]} Kf8 {[%emt 0:00:01]} 39. h5 {[%emt 0:00:01]} h6 {[%emt 0:00:02]} 40. Qg3 {[%emt 0:00:07]} Ke7 {[%emt 0:00:01]} 41. Qg4 {[%emt 0:00:05]} Rd8 {[%emt 0:00:03]} 42. Qc8 {[%emt 0:00:18] Weighted Error Value: White=0.12 (very precise) /Black=0.33} 1-0

[Event "Szansa Chess Open 2022"]
[Site "Warsaw"]
[Date "2022.09.18"]
[Round "6.12"]
[White "Smieszek, Wojciech"]
[Black "Rylski, Tadeusz"]
[Result "1-0"]
[ECO "B42"]
[WhiteElo "2082"]
[BlackElo "1733"]
[Annotator "TA"]
[PlyCount "45"]
[EventDate "2022.09.17"]
[EventCountry "POL"]
[SourceTitle "playchess.com"]
[Source "ChessBase"]
[SourceQuality "1"]
[TimeControl "900+10"]

{[%evp 14,44,57,22,70,32,39,28,33,35,156,131,245,170,188,175,444,506,680,447,1148,1140,1207,1106,1104,1086,976,475,1353,1295,29998,29999,29999]} 1. e4 {[%emt 0:06:42]} c5 {[%emt 0:00:01]} 2. Nf3 {[%emt 0:00:04]} e6 {[%emt 0:00:03]} 3. d4 {[%emt 0:00:02]} cxd4 {[%emt 0:00:04]} 4. Nxd4 {[%emt 0:00:01]} a6 {[%emt 0:00:01]} 5. Bd3 {[%emt 0:00:02]} Bc5 {[%emt 0:00:28]} 6. Nb3 {[%emt 0:00:04]} Ba7 {[%emt 0:00:02]} 7. O-O {[%emt 0:00:03]} Nc6 {[%emt 0:00:21]} 8. Nc3 {[%emt 0:00:03]} (8. Qg4 $5 {[%cal Rg4g7]}) 8... b5 {[%emt 0:00:54] B42: Sicilian: Kan Variation: 5 Bd3.} (8... Nge7 $11) 9. Qe2 {[%emt 0:01:14]} (9. Qg4 {seems wilder.} Nf6 10. Qxg7 Rg8 11. Qh6) 9... Bb7 {[%emt 0:01:31]} 10. Be3 {[%emt 0:00:06]} (10. Bf4 {with more complications.} d6 11. Qg4 Nf6 12. Qxg7 Rg8 13. Qh6) 10... Bxe3 {[%emt 0:00:42] White has an edge.} 11. Qxe3 {[%emt 0:00:02] [#]} ({Reject} 11. fxe3 Nf6 $15) 11... Nb4 $146 {[%emt 0:00:15]} ({Black should play} 11... Nf6 $14) ({Predecessor:} 11... d6 12. Rad1 Nf6 13. h3 O-O 14. a3 Ne5 15. f4 Nc4 16. Bxc4 bxc4 17. Nd2 Qc7 {0-1 (33) Henriques,S (2061)-Guimaraes,R (2181) Lisbon 2002}) 12. Qg3 {[%emt 0:02:12]} Qf6 {[%emt 0:01:15]} (12... Nf6 $16 {is a better defense.}) 13. e5 {[%emt 0:00:24]} Qh6 {[%emt 0:00:02]} 14. Be4 $36 {[%emt 0:00:12][%mdl 2048] Black is under strong pressure.} Nc6 $2 {[%emt 0:02:27]} (14... Nd5) 15. Nc5 $18 {[%emt 0:00:13]} Rb8 {[%emt 0:00:31]} 16. Rad1 {[%emt 0:00:14] Qd3 is the strong threat.} Bc8 {[%emt 0:00:40]} (16... Nge7 $142 17. Rxd7 Ba8 18. Nxa6 Rb6) 17. Bxc6 {[%emt 0:00:17]} dxc6 {[%emt 0:00:02]} 18. N3e4 {[%emt 0:00:07]} Ne7 {[%emt 0:00:19]} 19. Nd6+ {[%emt 0:00:42]} Kf8 {[%emt 0:00:02]} 20. Nxb5 {[%emt 0:02:24] Pair of Knights!} Nf5 {[%emt 0:01:27]} (20... g5 $142 21. Nd6 Qg6) 21. Qa3 {[%emt 0:00:07] Intending Nxe6+ and mate.} axb5 {[%emt 0:02:17]} 22. Nxe6+ {[%emt 0:00:06][%mdl 64] [#] Discovered Attack (Double check)} Ke8 {[%emt 0:00:09]} 23. Rd8# {[%emt 0:00:14] Weighted Error Value: White=1.03/Black=1.34} 1-0

[Event "Szansa Chess Open 2022"]
[Site "Warsaw"]
[Date "2022.09.18"]
[Round "6.13"]
[White "Ivanytska, Liudmyla"]
[Black "Jarzebowski, Kacper"]
[Result "0-1"]
[ECO "B28"]
[WhiteElo "1845"]
[BlackElo "2106"]
[Annotator "TA"]
[PlyCount "168"]
[EventDate "2022.09.17"]
[EventCountry "POL"]
[SourceTitle "playchess.com"]
[Source "ChessBase"]
[SourceQuality "1"]
[TimeControl "900+10"]

{[%evp 12,167,-16,-18,-7,-25,-24,-30,-11,-17,12,-25,-18,-22,0,-70,-43,-106,-98,-105,-108,-136,-128,-133,-111,-158,-95,-101,-68,-107,-120,-131,-81,-80,-72,-71,-75,-77,-77,-85,-72,-187,-184,-185,-185,-182,-175,-214,-209,-264,-284,-345,-344,-446,-441,-435,-410,-556,-536,-531,-530,-552,-512,-593,-600,-673,-669,-657,-663,-662,-662,-662,-243,-264,0,-639,-627,-666,-649,-633,-630,-780,-772,-1001,-1001,-964,-935,-969,-969,-960,-781,-838,-622,-596,-529,-837,-902,-758,-697,-695,-662,-789,-730,-665,-659,-960,-953,-950,-943,-938,-910,-959,-924,-924,-854,-895,-878,-29975,-29976,-29982,-29979,-29979,-29979,-29990,-29991,-29993,-29977,-29977,-29978,-29978,-29979,-29982,-29982,-29982,-29980,-29983,-29984,-29984,-29985,-29986,-29985,-29987,-29986,-29988,-29989,-29989,-29990,-29989,-29990,-29990,-29991,-29991,-29992,-29992,-29993,-29998,-29999,-29999]} 1. e4 {[%emt 0:00:02]} c5 {[%emt 0:00:01]} 2. Nf3 {[%emt 0:00:01]} a6 {[%emt 0:00:00]} 3. d4 {[%emt 0:00:01]} cxd4 {[%emt 0:00:01]} 4. Nxd4 {[%emt 0:00:01]} Nf6 {[%emt 0:00:01]} 5. Nc3 {[%emt 0:00:01]} e5 {[%emt 0:00:01]} 6. Nb3 {[%emt 0:00:02]} Bb4 {[%emt 0:00:01]} 7. Bd3 {[%emt 0:00:01]} d6 {[%emt 0:00:16] B28: Sicilian: 2 Nf3 a6 (O'Kelly Variation).} 8. O-O {[%emt 0:00:08]} Bxc3 {[%emt 0:00:05]} 9. bxc3 {[%emt 0:00:01]} Qc7 {[%emt 0:00:03] Black has an edge.} 10. c4 {[%emt 0:00:29]} Nbd7 {[%emt 0:00:08]} 11. f4 {[%emt 0:00:11] [#]} exf4 $146 {[%emt 0:01:03]} ({Predecessor:} 11... O-O 12. f5 b5 13. cxb5 axb5 14. Qe1 d5 15. exd5 e4 16. Bf4 Qb7 17. Be2 Nxd5 {½-½ (67) Guitkis,A-Greten,W Germany 2002}) 12. Bxf4 {[%emt 0:00:03]} Ne5 {[%emt 0:00:02]} 13. Bxe5 {[%emt 0:01:28]} (13. Bh6 $11 Rg8 14. Bf4) 13... dxe5 $15 {[%emt 0:00:00]} 14. h3 {[%emt 0:00:02]} (14. Qc1 $15) 14... Be6 $17 {[%emt 0:00:03]} 15. Qe2 {[%emt 0:00:13]} Nd7 {[%emt 0:00:07][%cal Bf6d7,Bd7c5,Bc5d3][%mdl 32]} 16. Rab1 {[%emt 0:00:19]} O-O {[%emt 0:00:16]} 17. Kh1 {[%emt 0:00:21]} Rac8 {[%emt 0:00:01][%cal Re6c4]} 18. Nd2 {[%emt 0:00:06]} (18. c5 $142) 18... f6 {[%emt 0:00:17]} ({Better is} 18... Nc5 19. Qe1 Rfd8) 19. Rb4 {[%emt 0:00:19]} Nc5 {[%emt 0:00:51]} 20. Rfb1 {[%emt 0:00:05]} Bd7 {[%emt 0:02:43] Black is much more active.} 21. Qe3 {[%emt 0:01:05]} Qd6 {[%emt 0:01:31]} ({Black should play} 21... Rfd8 22. Be2 Qa5) 22. Nb3 {[%emt 0:01:56]} Nxd3 {[%emt 0:00:20]} 23. Rb6 {[%emt 0:00:03]} Rc6 {[%emt 0:01:10]} ({Much worse is} 23... Qa3 24. cxd3 Rc7 25. Qd2 $11) 24. Rxc6 {[%emt 0:00:20]} Nf2+ {[%emt 0:00:01]} ({Of course not} 24... bxc6 25. cxd3 Rb8 26. Rd1 $11) 25. Qxf2 {[%emt 0:00:01]} Bxc6 {[%emt 0:00:02]} 26. Qe3 {[%emt 0:01:43]} (26. c5 $17 {is a better defense.} Qe6 27. Qe2) 26... Qa3 $19 {[%emt 0:01:24]} 27. Re1 {[%emt 0:01:25]} Qxa2 {[%emt 0:01:45]} 28. Qc3 {[%emt 0:00:03] [#] aiming for Ra1.} Qa3 {[%emt 0:00:36]} 29. c5 {[%emt 0:00:34] [#]} Qa4 {[%emt 0:00:09]} 30. Qd3 {[%emt 0:01:18]} Qb4 {[%emt 0:00:30]} 31. Re3 {[%emt 0:00:24]} a5 {[%emt 0:00:34][%cal Ba6a5,Ba5a4,Ba4a3,Ba3a2][%mdl 32]} 32. Nd2 {[%emt 0:00:14]} Qxc5 {[%emt 0:00:52]} 33. Kh2 {[%emt 0:00:51]} a4 {[%emt 0:00:08]} 34. Rg3 {[%emt 0:00:12]} Qd4 {[%emt 0:02:19]} 35. Qe2 {[%emt 0:00:08]} Ra8 {[%emt 0:00:59]} 36. c3 {[%emt 0:00:13]} Qc5 {[%emt 0:00:40]} 37. Qg4 {[%emt 0:00:19][%csl Gg3][%cal Rg4g7]} Qe7 {[%emt 0:01:07]} 38. c4 {[%emt 0:00:25]} a3 {[%emt 0:00:08]} 39. Nb3 {[%emt 0:00:01]} a2 {[%emt 0:00:02] And now ...Ra3 would win.} 40. Na1 {[%emt 0:00:01]} Qd7 {[%emt 0:00:35]} 41. Qe2 {[%emt 0:01:35]} Qd4 $2 {[%emt 0:00:17]} (41... Qe6 42. Rc3 Qd6) 42. Qg4 {[%emt 0:00:01][%csl Gg3][%cal Rg4g7]} Qd7 {[%emt 0:00:01]} (42... g6 43. Qe6+ Kg7 44. Qe7+ Kg8 45. Qe6+ Kg7 46. Qe7+ Kh6 47. Qxf6 Qd8 48. Qxe5 Qe8) 43. Qe2 $1 {[%emt 0:00:04]} Qe6 {[%emt 0:00:17]} 44. Rc3 {[%emt 0:01:48]} Qd6 {[%emt 0:00:10]} 45. Rd3 {[%emt 0:00:48]} Qc5 {[%emt 0:00:16]} 46. Rg3 {[%emt 0:00:47]} Ra3 {[%emt 0:00:05] ...Rxg3 is the strong threat.} 47. Rxa3 {[%emt 0:02:22]} Qxa3 {[%emt 0:00:01][%mdl 4096] Endgame KQB-KQN} 48. Qc2 {[%emt 0:00:02]} Qa4 {[%emt 0:00:10]} 49. Qe2 {[%emt 0:00:31]} h6 {[%emt 0:00:13]} 50. h4 {[%emt 0:00:01]} Qa7 {[%emt 0:00:14]} 51. h5 {[%emt 0:00:08]} Qd4 {[%emt 0:00:12]} 52. Qxa2 {[%emt 0:00:02]} Qxe4 {[%emt 0:00:02]} 53. Qa8+ {[%emt 0:00:29]} Kh7 {[%emt 0:00:02][%csl Gc6][%cal Re4g2]} 54. Qa2 {[%emt 0:00:01]} Qh4+ {[%emt 0:00:10]} 55. Kg1 {[%emt 0:00:01]} Qxh5 {[%emt 0:00:07] Hoping for ...Qd1+.} 56. Nb3 {[%emt 0:00:10]} Qg4 {[%emt 0:00:31]} 57. Qc2+ {[%emt 0:00:11]} Qe4 {[%emt 0:00:10]} 58. Qb2 {[%emt 0:00:20]} Qe1+ {[%emt 0:00:14]} 59. Kh2 {[%emt 0:00:01]} Qh4+ {[%emt 0:00:01]} 60. Kg1 {[%emt 0:00:03]} Qxc4 {[%emt 0:00:01]} 61. Kh2 {[%emt 0:00:17]} Qh4+ {[%emt 0:00:07]} 62. Kg1 {[%emt 0:00:01]} h5 {[%emt 0:00:08][%cal Bh6h5,Bh5h4,Bh4h3,Bh3g2][%mdl 32] ( -> ...Qe1+)} 63. Qc2+ {[%emt 0:00:10]} Qe4 {[%emt 0:00:02]} 64. Qb2 {[%emt 0:00:16]} h4 {[%emt 0:00:02] Black mates.} 65. Kh2 {[%emt 0:00:03]} Qf4+ {[%emt 0:00:17]} 66. Kg1 {[%emt 0:00:05]} Qe3+ {[%emt 0:00:06]} 67. Kh1 {[%emt 0:00:12]} h3 {[%emt 0:00:06]} 68. Qb1+ {[%emt 0:00:23]} Qe4 {[%emt 0:00:14]} 69. Qxe4+ {[%emt 0:00:03]} Bxe4 {[%emt 0:00:01] KB-KN} 70. Kh2 {[%emt 0:00:09]} hxg2 {[%emt 0:00:02]} 71. Nd2 {[%emt 0:00:01]} Bc6 {[%emt 0:00:01]} 72. Nc4 {[%emt 0:00:02]} Kg8 {[%emt 0:00:06]} 73. Nb6 {[%emt 0:00:01]} Kf7 {[%emt 0:00:01]} 74. Kg1 {[%emt 0:00:02]} f5 {[%emt 0:00:03][%cal Bf6f5,Bf5f4,Bf4f3][%mdl 32]} 75. Kh2 {[%emt 0:00:01]} g5 {[%emt 0:00:01][%cal Bg7g5,Bg5g4][%mdl 32]} 76. Kg1 {[%emt 0:00:01]} g4 {[%emt 0:00:05]} 77. Kf2 {[%emt 0:00:06]} f4 {[%emt 0:00:01]} 78. Kg1 {[%emt 0:00:01]} f3 {[%emt 0:00:08]} 79. Nc4 {[%emt 0:00:01]} Ke6 {[%emt 0:00:09]} 80. Nd2 {[%emt 0:00:06]} b5 {[%emt 0:00:08][%cal Bb7b5,Bb5b4][%mdl 32]} 81. Nb3 {[%emt 0:00:15]} Kf6 {[%emt 0:00:11]} 82. Nc5 {[%emt 0:00:21]} b4 {[%emt 0:00:05]} 83. Nb3 {[%emt 0:00:09]} g3 {[%emt 0:00:02][%csl Gg3][%cal Rf3f2]} 84. Nd2 {[%emt 0:00:01]} f2# {[%emt 0:00:01] Weighted Error Value: White=0.36/Black=0.10 (very precise)} 0-1